Cogmind - Beta 10.1 @@@ ROGUE MODE // 2020.09.30 @ 04:07:04 // Winter2019/RPGLIKE Player: Calanor Result: Destroyed by G-34 Mercenary with Small Laser Performance ------------- Evolutions (0) 0 Regions Visited (1) 200 Robots Destroyed (18) 90 Value Destroyed (341) 341 Prototype IDs (2) 40 Alien Tech Used (0) 0 Bonus (0) 0 TOTAL SCORE: 671 Bonus ------- None Cogmind --------- Core Integrity 0/600 Matter 258/300 Energy 125/125 System Corruption 0% Temperature Cool (407) Movement Walking (120) Location -10/Materials Parts ------- > --- POWER (1) -------- Light Ion Engine > --- PROPULSION (2) --- Aluminum Leg Aluminum Leg > --- UTILITY (1) ------ Sensor Array > --- WEAPON (1) ------- Assault Rifle > --- INVENTORY (4) ---- Light Ion Engine Medium Laser Assault Rifle Grenade Launcher Peak State ------------ > --- POWER ------------ Light Ion Engine > --- PROPULSION ------- Aluminum Leg Aluminum Leg > --- UTILITY ---------- Sensor Array > --- WEAPON ----------- Assault Rifle > --- INVENTORY -------- Light Ion Engine Light Treads Assault Rifle Light Assault Rifle [Rating: 5] Favorites ----------- Power Light Ion Engine Engine Light Ion Engine Propulsion Aluminum Leg Leg Aluminum Leg Utility Sensor Array Device Sensor Array Weapon Assault Rifle Energy Gun Medium Laser Ballistic Gun Assault Rifle Build | -11 -10 ------- Run | Scr Mat Slots Evolved 1 | 1 . Power . | . . Propulsion 1 | 1 . Utility . | . . Weapon . | . . Parts Attached 9 | 4 5 Power 2 | 1 1 Engine 2 | 1 1 Core . | . . Reactor . | . . Propulsion 2 | 2 . Treads . | . . Leg 2 | 2 . Wheel . | . . Hover . | . . Flight . | . . Utility 2 | . 2 Device 2 | . 2 Storage . | . . Processor . | . . Hackware . | . . Protection . | . . Artifact . | . . Weapon 3 | 1 2 Energy Gun 1 | . 1 Energy Cannon . | . . Ballistic Gun 2 | 1 1 Ballistic Cannon . | . . Launcher . | . . Special Weapon . | . . Impact Weapon . | . . Slashing Weapon . | . . Piercing Weapon . | . . Special Melee Weapon . | . . Unidentified Prototypes . | . . Parts Lost . | . . Power . | . . Propulsion . | . . Utility . | . . Weapon . | . . Highest Loss Streak . | . . Average Slot Usage (%) 97 | . 97 Engine 20 | . 20 Leg 40 | . 40 Device 17 | . 17 Energy Gun 7 | . 7 Ballistic Gun 12 | . 12 Naked Turns . | . . Heaviest Build 6 | 5 6 Greatest Support 20 | 20 20 Greatest Overweight (x) . | . . Average Overweight (x) . | . . Largest Inventory Capacity 4 | 4 4 Average Capacity 3 | 3 4 Most Carried 4 | 4 4 Average Carried 3 | 2 3 Final Capacity 4 | 4 4 Final Carried 4 | 4 4 Class Distribution -------------------- 100% | Mutant Dominant Class ---------------- Mutant | -10/Materials Resources | -11 -10 ----------- Run | Scr Mat Matter Collected 458 | 240 218 Remotely . | . . Salvage Created 539 | . 539 Parts 34 | . 34 Haulers Intercepted 1 | . 1 Recyclers Shooed 3 | . 3 Parts Field Recycled . | . . Retrieved Matter . | . . Parts Self-Destructed . | . . Prevented . | . . Kills | -11 -10 ------- Run | Scr Mat Combat Hostiles Destroyed 12 | . 12 Guns 12 | . 12 Classes Destroyed 6 | . 6 Builder 1 | . 1 Hauler 1 | . 1 Recycler 2 | . 2 Watcher 2 | . 2 Swarmer 6 | . 6 Grunt 6 | . 6 Best Kill Streak 3 | . 3 Combat Bots Only 3 | . 3 Max Kills in Single Turn 1 | . 1 Gunslinging . | . . Exploded . | . . Melee . | . . Uniques/NPCs Destroyed . | . . Combat | -11 -10 -------- Run | Scr Mat Damage Taken 996 | . 996 Core 803 | . 803 Absorbed by Shields . | . . Redirected to Core 610 | . 610 Core Remaining (%) 100 | 100 . Volleys Fired 93 | . 93 Largest 1 | . 1 Hottest 50 | . 50 Shots Fired 93 | . 93 Gun 93 | . 93 Cannon . | . . Launcher . | . . Special . | . . Kinetic 70 | . 70 Thermal 23 | . 23 Explosive . | . . Electromagnetic . | . . Robot Hit Streak 6 | . 6 Robot Miss Streak 3 | . 3 Penetration Max . | . . Secondary Targets . | . . Shots Hit Robots 56 | . 56 Core Hits 31 | . 31 Critical Hits 1 | . 1 Critical Kills . | . . Critical Parts Destroyed 1 | . 1 Melee Attacks . | . . Impact . | . . Slashing . | . . Piercing . | . . Sneak Attacks . | . . Combat Hostiles . | . . Follow-up Attacks . | . . Damage Inflicted 745 | . 745 Guns 745 | . 745 Cannons . | . . Explosions . | . . Melee . | . . Ramming . | . . Kinetic 558 | . 558 Thermal 187 | . 187 Explosive . | . . Electromagnetic . | . . Impact . | . . Slashing . | . . Piercing . | . . Highest Corruption . | . . Average Corruption . | . . Corruption Purged . | . . Overload Shots . | . . Overflow Damage . | . . Projectiles . | . . Explosions . | . . Melee . | . . Knockbacks . | . . Impact . | . . Kinetic . | . . Secondary . | . . Self-Inflicted Damage . | . . Shots . | . . Rammed . | . . Targets Rammed . | . . Kicked . | . . Crushed . | . . Highest Temperature 447 | . 447 Average Temperature 219 | . 219 Received Heat Transfer 465 | . 465 Effects 5 | . 5 Shutdowns 2 | . 2 Interference 1 | . 1 Damage (major) 2 | . 2 Siege Activations . | . . Robots Corrupted . | . . Combat Hostiles . | . . Parts Fried . | . . Impact Corruptions . | . . Robots Melted . | . . Combat Hostiles . | . . Parts Melted 4 | . 4 Heat Transferred 555 | . 555 Parts Sabotaged . | . . Parts Stolen . | . . Parts Stripped . | . . Power Chain Reactions . | . . Missiles Intercepted . | . . Alert | -11 -10 ------- Run | Scr Mat Peak Influence 266 | . 266 Initial . | . . Average 126 | . 140 Maximum Alert Level 1 | . 1 Low Security (%) 73 | 100 70 Level 1 26 | . 29 Level 2 . | . . Level 3 . | . . Level 4 . | . . Level 5 . | . . High Security . | . . Max Security . | . . Squads Dispatched 3 | . 3 Investigation . | . . Extermination . | . . Reinforcement 3 | . 3 Assault . | . . Garrison . | . . Intercept . | . . Construction Impeded . | . . Haulers Reinforced . | . . Stealth | -11 -10 --------- Run | Scr Mat Distress Signals 1 | . 1 Communications Jammed . | . . Distress Signals . | . . Times Spotted 21 | . 21 Peak Tracking Total 6 | . 6 Tactical Retreats . | . . Traps | -11 -10 ------- Run | Scr Mat Traps Triggered . | . . Indirectly . | . . Trap Hack Attempts . | . . Triggered . | . . Disarmed . | . . Reprogrammed . | . . Reused . | . . Traps Extracted . | . . Installed . | . . Triggered . | . . Machines | -11 -10 ---------- Run | Scr Mat Machines Disabled . | . . Max in Single Turn . | . . Machines Sabotaged . | . . Garrisons Compromised . | . . Overloaded Fab Kills . | . . Fab Network Shutdowns . | . . Hacking | -11 -10 --------- Run | Scr Mat Machines Accessed 3 | . 3 Terminals 2 | . 2 Fabricators . | . . Repair Stations 1 | . 1 Recycling Units . | . . Scanalyzers . | . . Garrison Access . | . . Total Hacks 7 | . 7 Successful 3 | . 3 Failed 4 | . 4 Catastrophic . | . . Database Lockouts . | . . Manual . | . . Terminals 6 | . 6 Fabricators . | . . Repair Stations 1 | . 1 Recycling Units . | . . Scanalyzers . | . . Garrison Access . | . . Terminal Hacks 2 | . 2 Prototype ID Bank 1 | . 1 Locate Traps 1 | . 1 Fabricator Hacks . | . . Repair Station Hacks 1 | . 1 Scan Component 1 | . 1 Recycling Unit Hacks . | . . Scanalyzer . | . . Garrison Access Hacks . | . . Unauthorized Hacks . | . . Terminals . | . . Fabricators . | . . Repair Stations . | . . Recycling Units . | . . Scanalyzers . | . . Garrison Access . | . . Data Cores Recovered . | . . Used . | . . Hacking Detections 2 | . 2 Full Trace Events . | . . Feedback Events . | . . Feedback Blocked . | . . Robot Schematics Acquired . | . . Robots Built . | . . Matter . | . . Time . | . . Total Robot Build Rating . | . . Part Schematics Acquired . | . . Parts Built . | . . Matter . | . . Time . | . . Total Part Build Rating . | . . Parts Repaired . | . . Time . | . . Parts Recycled . | . . Recycled Matter . | . . Retrieved Matter . | . . Retrieved Components . | . . Parts Scanalyzed . | . . Part Schematics Acquired . | . . Parts Damaged . | . . Bothacking | -11 -10 ------------ Run | Scr Mat Used RIF Installer . | . . Robots Hacked . | . . Non-combat . | . . Combat . | . . Robot Hacks Applied . | . . Relay Couplers Released . | . . Robots Rewired . | . . Allies Hacked . | . . Hacks Repelled . | . . Allies | -11 -10 -------- Run | Scr Mat Total Allies . | . . Largest Group . | . . Highest-Rated Group . | . . Highest-Rated Ally . | . . Total Orders . | . . Ally Attacks . | . . Total Damage . | . . Kills . | . . Allies Corrupted . | . . Allies Melted . | . . Intel | -11 -10 ------- Run | Scr Mat Robot Analysis Total . | . . Derelict Logs Recovered . | . . Drone Launches . | . . Drone Recoveries . | . . Exploration | -11 -10 ------------- Run | Scr Mat Turns Passed 650 | 63 587 Spaces Moved 318 | 49 269 Core 8 | 8 . Treads . | . . Legs 310 | 41 269 Wheels . | . . Hover . | . . Flight . | . . Fastest Speed 50 | 50 120 Average Speed 118 | 108 120 Slowest Speed 120 | 120 120 Overloaded Moves . | . . Propulsion Burnouts . | . . Robots Hopped . | . . Cave-ins Triggered . | . . Exploration Rate (%) 25 | 4 47 Regions Visited 1 Branch Regions . Pre-discovered Areas . | . . Known Exits Taken . | . . Unknown Exits Taken 1 | 1 . Scrap Searched . | . . Spaces Dug . | . . Terrain Destroyed . | . . Melee . | . . Projectile . | . . AOE . | . . Terrain Rammed . | . . Walls Destroyed . | . . Machines Disabled . | . . Actions | -11 -10 --------- Run | Scr Mat Total 497 | 57 440 Wait 57 | . 57 Move 317 | 48 269 Hop . | . . Pick Up 7 | 5 2 Fast Attach 4 | 3 1 Attach 1 | 1 . Detach . | . . Swap 4 | . 4 Drop 4 | . 4 Fire 93 | . 93 Melee . | . . Ram . | . . Kick . | . . Crush . | . . Escape Stasis . | . . Rewire . | . . Trap . | . . Miscellaneous 10 | . 10 Route ------- -11/Scrapyard -10/Materials (discovered 2 exits: [*Mat] / [*Min]) History --------- Turn | Location | Event 4 | -11/Scrapyard | Upgraded with Propulsion slot (x1) 4 | -11/Scrapyard | Discovered new exit (range 15) 64 | -11/Scrapyard | Entered Materials 300 | -10/Materials | Build established: Mutant 465 | -10/Materials | Discovered new exit (range 5) 559 | -10/Materials | Discovered new exit (range 14) 630 | -10/Materials | Core integrity fell below 50% 637 | -10/Materials | Reached level 2 644 | -10/Materials | Core integrity fell below 20% 651 | -10/Materials | Destroyed by G-34 Mercenary with Small Laser Last Messages --------------- 00617_ Ion Engine melted. 00617_ G-34 Mercenary destroyed. 00629_ G-47 Trooper destroyed. 00632_ Power failure, Lgt. Ion Engine shutdown. 00632_ R-06 Scavenger collects Heat Sink. 00635_ R-06 Scavenger collects Aluminum Leg. 00635_ K-01 Serf collects debris. 00636_ R-06 Scavenger collects Particle Gun. 00637_ Reached level 2. 00637_ Aluminum Leg melted. 00637_ G-34 Mercenary destroyed. 00637_ K-01 Serf collects debris. 00639_ R-06 Scavenger collects Aluminum Leg. 00640_ Overheating: Lgt. Ion Engine damaged (-4). 00640_ Overheating: Aluminum Leg damaged (-29). 00642_ Power failure, Lgt. Ion Engine shutdown. 00642_ Overheating: System interference. 00642_ Med. Laser temporarily disabled. 00642_ R-06 Scavenger collects Aluminum Leg. 00642_ K-01 Serf collects debris. Map ----- +----------------------------------------------------+ | ??????# [ # #??????????? ??????????????????? | | ??????# #| #?????????? ???????????????????? | | ??????# " " + ##########+##+#?????????????????? | | ??????# "R" # # ""?????????????? | | ??????# """ # !% + ""?????????????? | | ??????#= # % #?????????????????? | | ??????######### ##############?????????????????? | | ??????????????# %*#??????????????????????????????? | | ??????????????# #??????????????????????????????? | | ????####??????# #??????????????????????????????? | | ????? #??????# #??????????????????????????????? | | ?????# #??????# ###+##?????????????????????????? | | ?????# ########% #?????????????????????????? | | ###### """ % #?????????????????????????? | | """ ]# "T" #?????????????????????????? | | """ # """ """ #?????????????????????????? | | """ # """ """ #?????????????????????????? | | # ^ """^ """ #?????????????????????????? | | + ^ #?????????????????????????? | | # ! +?????????????????????????? | | +##### """ #?????????????????????????? | | #### ^ /// """ #?????????????????????????? | | /// """ #?????????????????????????? | | /// ##########????????????????? | | ##""!"!""#????????????????? | | ##+## [ ##@"!"!" #??? #???????????? | | # # ##### ? ##gg= # #???????????? | | # # #???# %kg r #???????????? | | # # #???# k < #???????????? | | #= "# #???# #???????????? | | # T# #???# #### ## ##+###???????????? | | # "# #???# #? #########????????????????? | | #[ # #???# ## #????????????????????????? | | ##### #???# ## ###????????????????????????? | | ????# #???# ###????????????????????????????? | | ????# #???# #??????????????????????????????? | | ????# #???# #??????????????????????????????? | | ????# #???# #??????????????????????????????? | | ????# #???# #########??????????????????????? | | ##### ##### #?????????????????????? | | #?????????????????????? | | +????????????????????? | | """ """ ##????????????????????? | | ###+########## """ """ #?????????????????????? | | # #?????# """ """????????????????????????? | | # """ #?????# ????????????????????????? | | # """ #?????# ????????????????????????? | | # """ #?????# ^""" """ ???????????????????????? | | + #?????# """ "?"????????????????????????? | | # #?????# """ "??????????????????????????? | +----------------------------------------------------+ Best States ------------- Heat Dissipation 25 Energy Generation 10 Energy Capacity 125 Matter Stores 300 Matter Capacity 300 Sight Range 16 Robot Scan Range 10 Terrain Scan Density 10 Evasion (%) 40 Item Schematics ----------------- None Robot Schematics ------------------ None Fabricated ------------ Nothing Alien Tech Used ----------------- None Achievements -------------- None Challenges ------------ None RPGLIKE | -11 -10 --------- Run | Scr Mat Levels Raised 1 | . 1 XP Earned 4555 | 3000 1555 XP Spent 3000 | 3000 . Upgrades 5 | 5 . Propulsion Slot 1 | 1 . Inventory Capacity 4 | 4 . Protomatter Created 155 | . 155 Integrity Restored 202 | . 202 Core 202 | . 202 Protomatter Decayed 87 | . 87 Game ------ Seed StructuralDiametricBlaster Manual? 0 Play Time 00:08:28 Cumulative 37.4 hours Start 2020.09.30 @ 03:58:59 End 2020.09.30 @ 04:07:04 Sessions 1 Manual Loads 0 Difficulty Rogue Special Mode Winter2019/RPGLIKE Game No. 35 Rogue 35 Adventurer 0 Explorer 0 Win Type - Total 0 Types 0/0/0/0/0/0/0/0/0 Lore% 21 Gallery% 20 Achievement% 18 Wizard Run 0 Options --------- ASCII 0 Keyboard 0 Movement Numpad Keybinds 0 Fullscreen 1 Font 24/Terminus Map View 76x50 Tactical HUD 1 Map Filters NONE Filters NONE Steam 1 RUN: dfbf5566-3c91-45a9-9f74-1109285c39fd